bitfinex/quotes_SOLUSD_20240530
["timestamp","ask_amount","ask_price","bid_price","bid_amount"]
[1717064131850,2.2363,165.45,165.4,20.3669]
[1717064132360,2.2363,165.45,165.41,2.2368]
[1717064133240,2.2359,165.48,165.43,18.13]
[1717064133556,96.59663033,165.7,165.46,78.13]
[1717064133557,8.9401,165.55,165.46,78.13]
[1717064133861,9.2554,165.52,165.48,2.2358]
[1717064134157,2.2354,165.52,165.48,2.2358]
[1717064136239,2.2353,165.53,165.48,2.2358]
[1717064136436,9.2553,165.53,165.48,2.2358]
[1717064136659,9.2553,165.53,165.48,78.13]
[1717064137030,9.2553,165.53,165.48,80.3658]
[1717064137231,2.2351,165.54,165.49,2.2357]
[1717064137658,9.2551,165.54,165.49,2.2357]
[1717064137870,2.2351,165.54,165.49,18.13]
[1717064138049,2.2351,165.54,165.5,2.2355]
[1717064138257,32.5487,165.6,165.52,2.2352]
[1717064138459,4.4687,165.6,165.52,2.2352]
[1717064138647,9.2547,165.57,165.53,1.20721228]
[1717064138844,2.2347,165.57,165.53,1.20721228]
[1717064139042,2.2346,165.58,165.53,1.20721228]
[1717064139250,7.02,165.59,165.54,78.13]
[1717064139454,2.2343,165.6,165.55,3.44196643]
[1717064139664,9.2543,165.6,165.55,3.44196643]
[1717064140242,2.2343,165.6,165.55,21.57196643]
[1717064140552,9.2543,165.6,165.55,21.57196643]
[1717064140767,2.2343,165.6,165.55,21.57196643]
[1717064140967,11.4893,165.62,165.57,20.3646]
[1717064141150,9.2553,165.62,165.58,20.3645]
[1717064141876,9.2553,165.62,165.58,80.3645]
[1717064142248,9.2553,165.62,165.58,2.2345]
[1717064142447,7.02,165.6,165.58,2.2345]
[1717064142767,7.02,165.6,165.57,2.2346]
[1717064142946,11.4893,165.62,165.57,2.2346]
[1717064143146,7.02,165.6,165.57,2.2346]
[1717064143361,7.02,165.59,165.57,2.2346]
[1717064143561,11.4893,165.62,165.53,54.33]
[1717064143562,7.02,165.58,165.53,54.33]
[1717064143765,7.02,165.57,165.54,2.235]
[1717064143949,7.02,165.57,165.55,2.2349]
[1717064144153,7.02,165.56,165.53,18.13]
[1717064144362,2.2345,165.59,165.55,2.2349]
[1717064144664,7.02,165.6,165.54,2.235]
[1717064144665,2.2345,165.58,165.54,2.235]
[1717064144845,2.2344,165.59,165.54,2.235]
[1717064145249,7.02,165.57,165.54,2.235]
[1717064146378,7.02,165.56,165.54,2.235]
[1717064146961,7.02,165.55,165.52,2.2353]
[1717064147162,7.02,165.54,165.52,2.2353]
[1717064150583,7.02,165.55,165.52,2.2353]
[1717064152172,7.02,165.54,165.52,2.2353]
[1717064152487,7.02,165.54,165.51,2.2354]
[1717064152782,7.02,165.53,165.51,2.2354]
[1717064153390,7.02,165.53,165.52,2.2353]
[1717064153569,7.02,165.54,165.52,2.2353]
[1717064154074,7.02,165.54,165.51,2.2354]
[1717064154469,7.02,165.54,165.47,18.13]
[1717064154470,4.4703,165.54,165.47,18.13]
[1717064154793,7.02,165.49,165.46,2.2361]
[1717064154965,2.2354,165.52,165.47,2.236]
[1717064155172,7.02,165.51,165.48,2.2357]
[1717064155685,7.02,165.49,165.43,11.493]
[1717064155889,7.02,165.48,165.45,2.2362]
[1717064156182,8.9407,165.54,165.45,60.0]
[1717064156390,7.02,165.51,165.49,2.2357]
[1717064156684,7.02,165.51,165.48,2.2358]
[1717064156883,11.0455,165.56,165.49,2.2357]
[1717064157070,8.8105,165.56,165.51,2.2354]
[1717064157264,7.02,165.53,165.51,2.2354]
[1717064157877,7.02,165.53,165.5,2.2355]
[1717064158483,2.235,165.55,165.51,2.2354]
[1717064158660,7.02,165.53,165.51,2.2354]
[1717064158864,7.02,165.53,165.5,2.2355]
[1717064159364,7.02,165.52,165.5,2.2355]
[1717064159657,7.02,165.52,165.47,47.38]
[1717064159658,7.02,165.52,165.47,4.472]
[1717064159881,7.02,165.51,165.48,2.2358]
[1717064160078,7.02,165.51,165.49,2.2357]
[1717064160283,7.02,165.5,165.49,2.2357]
[1717064160999,7.02,165.5,165.48,2.2358]
[1717064162069,2.2355,165.51,165.46,2.236]
[1717064162275,7.02,165.48,165.46,2.236]
[1717064162592,2.2357,165.49,165.44,18.13]
[1717064162907,2.2357,165.5,165.45,2.2362]
[1717064163075,2.2357,165.5,165.46,2.2361]
[1717064164089,2.2355,165.51,165.46,2.2361]
[1717064164306,7.02,165.49,165.46,2.2361]
[1717064164474,7.02,165.49,165.47,2.236]
[1717064164672,7.02,165.5,165.48,2.2358]
[1717064164882,2.2352,165.53,165.49,2.2357]
[1717064165074,7.02,165.51,165.49,2.2357]
[1717064165877,7.02,165.51,165.48,2.2358]
[1717064166078,7.02,165.52,165.48,2.2358]
[1717064166280,9.2553,165.52,165.48,2.2358]
[1717064166702,2.2353,165.52,165.48,2.2358]
[1717064166899,9.2553,165.52,165.48,2.2358]
[1717064167280,9.2555,165.51,165.47,2.2359]
[1717064167795,7.02,165.51,165.47,2.2359]
[1717064168102,2.2354,165.52,165.48,2.2358]
[1717064168404,10.6328,165.59,165.49,78.13]
[1717064168583,2.2347,165.57,165.52,2.2353]
[1717064168907,7.02,165.55,165.52,2.2353]
[1717064169495,7.02,165.55,165.51,2.2354]
[1717064169800,7.02,165.55,165.52,2.2353]
[1717064170377,7.02,165.54,165.51,2.2354]
[1717064170590,7.02,165.53,165.51,2.2354]
[1717064172408,7.02,165.52,165.49,2.2357]
[1717064172609,7.02,165.51,165.49,2.2357]
[1717064172987,7.02,165.51,165.5,2.2356]
[1717064174413,7.02,165.52,165.5,2.2356]
[1717064178719,7.02,165.53,165.49,2.2357]
[1717064179084,7.02,165.52,165.49,2.2357]
[1717064179282,7.02,165.51,165.49,2.2357]
[1717064179614,2.2352,165.53,165.49,2.2357]
[1717064179825,7.02,165.51,165.49,2.2357]
[1717064180387,7.02,165.51,165.48,2.2358]
[1717064180709,7.02,165.49,165.48,2.2358]
[1717064181693,7.02,165.49,165.44,8.9454]
[1717064181894,7.02,165.48,165.44,27.0754]
[1717064182107,7.02,165.48,165.47,2.236]
[1717064184311,2.2355,165.51,165.47,2.236]
[1717064184611,2.2354,165.52,165.48,2.2359]
[1717064184792,7.02,165.51,165.48,2.2359]
[1717064184995,7.02,165.51,165.49,2.2356]
[1717064185317,11.1744,165.56,165.46,82.6021]
[1717064185318,2.2351,165.54,165.5,2.2356]
[1717064185610,7.02,165.53,165.5,2.2356]
[1717064185812,7.02,165.51,165.49,2.2357]
[1717064187520,7.02,165.51,165.5,2.2356]
[1717064187694,7.02,165.52,165.5,2.2356]
[1717064188697,7.02,165.52,165.49,2.2357]
[1717064189718,7.02,165.52,165.5,2.2356]
[1717064190519,7.02,165.53,165.51,2.2354]
[1717064190901,7.02,165.53,165.5,2.2355]
[1717064191215,7.02,165.52,165.49,2.2357]
[1717064191406,7.02,165.51,165.49,2.2357]
[1717064192510,7.02,165.51,165.45,22.6025]
[1717064192724,7.02,165.49,165.47,2.236]
[1717064193198,7.02,165.49,165.48,2.2359]
[1717064193624,7.02,165.49,165.47,2.2359]
[1717064193852,7.02,165.5,165.48,2.2359]
[1717064194322,7.02,165.51,165.48,2.2359]
[1717064196236,9.2554,165.52,165.48,2.2359]
[1717064196649,9.2552,165.53,165.49,2.2357]
[1717064197137,9.2551,165.54,165.5,2.2356]
[1717064199523,9.2552,165.53,165.5,2.2356]
[1717064200018,2.2352,165.53,165.49,2.2357]
[1717064200224,7.02,165.52,165.49,2.2357]
[1717064201143,7.02,165.51,165.49,2.2357]
[1717064202145,2.2352,165.53,165.49,2.2357]
[1717064202337,7.02,165.51,165.49,2.2357]
[1717064203223,7.02,165.51,165.47,2.2359]
[1717064203224,7.02,165.5,165.47,2.2359]
[1717064203444,7.02,165.49,165.47,2.2359]
[1717064205141,7.02,165.49,165.48,2.2359]
[1717064205350,2.2354,165.52,165.48,2.2359]
[1717064205638,2.2354,165.52,165.48,2.2358]
[1717064206034,7.02,165.5,165.48,2.2358]
[1717064207454,7.02,165.5,165.47,2.236]
[1717064207958,7.02,165.5,165.48,2.2358]
[1717064208948,2.2354,165.52,165.48,2.2358]
[1717064209247,7.02,165.5,165.48,2.2358]
[1717064209853,7.02,165.5,165.47,2.2359]
[1717064211649,2.2355,165.51,165.47,2.2359]
[1717064211837,7.02,165.5,165.47,2.2359]
[1717064217152,7.02,165.5,165.48,2.2358]
[1717064217344,7.02,165.51,165.48,2.2358]
[1717064220652,7.02,165.49,165.46,2.2361]
[1717064221371,2.2355,165.51,165.47,2.236]
[1717064221670,7.02,165.51,165.48,2.2359]
[1717064222470,9.2555,165.51,165.47,2.2359]
[1717064222647,2.2355,165.51,165.48,2.2359]
[1717064223462,9.2554,165.52,165.48,2.2359]
[1717064228183,2.2354,165.52,165.48,2.2359]
[1717064228352,9.2554,165.52,165.48,2.2359]
[1717064228754,2.2354,165.52,165.48,2.2359]
[1717064229056,9.2554,165.52,165.48,2.2359]
[1717064229462,2.2352,165.53,165.49,2.2357]
[1717064229664,2.2352,165.53,165.49,68.8805]
[1717064229869,9.2551,165.54,165.49,68.8805]
[1717064230051,9.2551,165.54,165.5,2.2356]
[1717064230251,9.2551,165.54,165.49,68.8805]
[1717064230560,7.02,165.54,165.49,68.8805]
[1717064231395,9.2551,165.54,165.5,2.2356]
[1717064233155,2.2351,165.54,165.5,2.2356]
[1717064233350,9.2551,165.54,165.5,2.2356]
[1717064233776,2.2352,165.53,165.49,87.0105]
[1717064233982,9.2552,165.53,165.49,87.0105]
[1717064234173,7.02,165.53,165.5,2.2356]
[1717064234361,9.2551,165.54,165.5,2.2356]
[1717064234981,6.3903,165.63,165.52,78.13]
[1717064235186,9.2545,165.59,165.54,2.235]
[1717064235367,2.2345,165.58,165.54,2.235]
[1717064235567,7.02,165.58,165.54,2.235]
[1717064235779,7.02,165.58,165.55,2.2349]
[1717064236076,7.02,165.59,165.55,2.2349]
[1717064236283,9.2543,165.6,165.55,20.3649]
[1717064237581,9.2543,165.6,165.55,26.6487]
[1717064238369,7.02,165.6,165.56,2.2348]
[1717064238681,2.2342,165.61,165.57,1.20755682]
[1717064238905,9.2542,165.61,165.57,1.20755682]
[1717064239469,7.02,165.61,165.57,1.20755682]
[1717064239671,2.2338,165.64,165.59,2.2343]
[1717064240062,7.02,165.63,165.59,2.2343]
[1717064240280,2.2338,165.64,165.59,2.2343]
[1717064240482,7.02,165.63,165.59,2.2343]
[1717064240661,2.2338,165.64,165.59,2.2343]
[1717064240862,7.02,165.63,165.59,2.2343]
[1717064241168,2.2338,165.64,165.59,2.2343]
[1717064241375,7.02,165.63,165.59,8.5263]
[1717064241780,2.2338,165.64,165.59,8.5263]
[1717064242090,7.02,165.63,165.6,2.2342]
[1717064242583,2.2336,165.65,165.6,2.2342]
[1717064242769,7.02,165.63,165.59,8.5263]
[1717064242976,7.02,165.63,165.59,23.9022]
[1717064243487,7.02,165.63,165.59,23.9965]
[1717064243875,7.02,165.63,165.6,2.2342]
[1717064245898,7.02,165.63,165.59,23.9965]
[1717064246077,7.02,165.62,165.59,23.9965]
[1717064246791,7.02,165.6,165.56,2.2347]
[1717064246982,7.02,165.57,165.52,49.6119]
[1717064247173,2.2346,165.58,165.53,2.2352]
[1717064247371,7.02,165.54,165.53,2.2352]
[1717064249989,2.2344,165.59,165.54,2.235]
[1717064250165,7.02,165.55,165.54,2.235]
[1717064250692,7.02,165.57,165.55,2.2348]
[1717064250890,7.02,165.57,165.56,2.2348]
[1717064252296,7.02,165.57,165.52,2.2353]
[1717064252467,7.02,165.53,165.5,2.2355]
[1717064252672,7.02,165.52,165.5,2.2355]
[1717064253989,7.02,165.52,165.51,2.2355]
[1717064254374,7.02,165.53,165.51,2.2355]
[1717064254795,7.02,165.54,165.52,2.2353]
[1717064255290,7.02,165.55,165.52,2.2353]
[1717064255600,2.2348,165.56,165.52,2.2353]
[1717064255801,7.02,165.55,165.52,2.2353]
[1717064256090,2.2348,165.56,165.52,2.2353]
[1717064256297,7.02,165.55,165.52,2.2353]
[1717064256879,7.02,165.55,165.51,2.2354]
[1717064257179,9.255,165.55,165.51,2.2354]
[1717064257395,7.02,165.55,165.52,2.2353]
[1717064258609,2.2348,165.56,165.52,2.2353]
[1717064258770,7.02,165.55,165.52,2.2353]
[1717064259186,7.02,165.55,165.51,62.2354]
[1717064259392,7.02,165.54,165.51,62.2354]
[1717064260280,7.02,165.55,165.51,62.2354]
[1717064261280,7.02,165.55,165.51,2.2354]
[1717064261512,2.235,165.55,165.49,2.2357]
[1717064261685,7.02,165.52,165.49,2.2357]
[1717064262203,7.02,165.52,165.5,2.2356]
[1717064262805,7.02,165.53,165.5,2.2356]
[1717064263981,7.02,165.54,165.5,2.2356]
[1717064265380,7.02,165.53,165.5,2.2356]
[1717064265780,7.02,165.53,165.51,2.2355]
[1717064268702,2.2348,165.56,165.51,2.2355]
[1717064268883,7.02,165.53,165.51,2.2355]
[1717064271379,28.08,165.6,165.52,2.2353]
[1717064271579,7.02,165.56,165.52,2.2353]
[1717064274780,2.2347,165.57,165.53,2.2352]
[1717064274982,10.9347,165.61,165.54,2.235]
[1717064275195,10.9347,165.61,165.52,78.13]
[1717064275196,7.02,165.58,165.55,2.2349]
[1717064275404,7.02,165.58,165.54,2.235]
[1717064275585,7.02,165.58,165.52,2.2352]
[1717064275902,7.02,165.55,165.52,2.2352]
[1717064276885,7.02,165.55,165.53,2.2352]
[1717064277101,7.02,165.56,165.53,2.2352]
[1717064279990,7.02,165.57,165.53,2.2352]
[1717064282108,7.02,165.57,165.54,2.2351]
[1717064285201,7.02,165.55,165.51,2.2354]
[1717064285509,2.2347,165.57,165.52,2.2353]
[1717064285898,7.02,165.55,165.52,2.2353]
[1717064286097,7.02,165.55,165.53,2.2352]
[1717064286800,2.2346,165.58,165.54,2.2351]
[1717064287111,7.02,165.57,165.54,2.2351]
[1717064287514,7.02,165.57,165.53,2.2351]
[1717064288006,2.2346,165.58,165.53,2.2351]
[1717064288208,7.02,165.57,165.53,2.2351]
[1717064289921,7.02,165.57,165.54,2.235]
[1717064290610,7.02,165.57,165.53,2.2351]
[1717064290807,7.02,165.56,165.53,2.2351]
[1717064290984,7.02,165.57,165.53,2.2351]
[1717064292921,2.2346,165.58,165.54,2.235]
[1717064293110,7.02,165.57,165.54,2.235]
[1717064294418,7.02,165.56,165.54,2.235]
[1717064294796,7.02,165.56,165.52,60.0]
[1717064294797,7.02,165.56,165.53,2.2351]
[1717064295197,7.02,165.54,165.52,2.2353]
[1717064297612,2.2347,165.57,165.52,2.2353]
[1717064297917,2.2346,165.58,165.53,2.2352]
[1717064298099,7.02,165.55,165.53,2.2352]
[1717064299923,6.1603,165.57,165.53,2.2352]
[1717064300123,7.02,165.55,165.53,2.2352]
[1717064301434,7.02,165.55,165.51,2.2353]
[1717064301729,7.02,165.52,165.5,2.2355]
[1717064302339,7.02,165.53,165.5,2.2355]
[1717064302509,7.02,165.53,165.49,388.7]
[1717064302706,2.2351,165.54,165.49,388.7]
[1717064302707,7.02,165.51,165.49,388.7]
[1717064302925,7.02,165.51,165.49,390.9357]
[1717064303428,7.02,165.51,165.5,2.2356]
[1717064303629,7.02,165.51,165.49,390.9357]
[1717064304718,7.02,165.52,165.49,390.9356]
[1717064304918,7.02,165.52,165.49,2.2356]
[1717064307741,7.02,165.53,165.5,2.2356]
[1717064308843,7.02,165.53,165.49,2.2357]
[1717064309060,9.2552,165.53,165.49,2.2357]
[1717064313959,2.2352,165.53,165.49,2.2357]
[1717064314243,7.02,165.52,165.49,2.2357]
[1717064316656,7.02,165.52,165.46,22.6022]
[1717064316834,9.2553,165.52,165.48,2.2358]
[1717064317242,7.02,165.51,165.48,2.2358]
[1717064317846,9.2553,165.52,165.48,2.2358]
[1717064318026,7.02,165.52,165.48,2.2358]
[1717064318225,2.2353,165.53,165.48,2.2358]
[1717064318432,7.02,165.52,165.48,2.2358]
[1717064318744,7.02,165.52,165.49,2.2357]
[1717064319949,9.2552,165.53,165.49,2.2357]
[1717064320754,7.02,165.52,165.48,2.2358]
[1717064321846,7.02,165.52,165.49,2.2357]
[1717064322653,7.02,165.52,165.48,2.2358]
[1717064322954,7.02,165.52,165.49,2.2357]
[1717064323247,2.2353,165.53,165.49,2.2357]
[1717064323455,9.2553,165.53,165.49,2.2357]
[1717064323830,7.02,165.53,165.49,2.2357]
[1717064324228,2.2351,165.54,165.5,2.2356]
[1717064328141,2.2351,165.54,165.49,2.2357]
[1717064328348,2.2352,165.53,165.49,2.2357]
[1717064328841,9.2552,165.53,165.49,2.2357]
[1717064329241,2.2352,165.53,165.49,2.2357]
[1717064329562,9.2552,165.53,165.49,2.2357]
[1717064329765,9.2552,165.53,165.48,2.2358]
[1717064329945,9.2552,165.53,165.48,9.2558]
[1717064330263,9.2552,165.53,165.49,2.2357]
[1717064331842,2.2353,165.52,165.48,9.2558]
[1717064334961,9.2553,165.53,165.49,2.2357]
[1717064338871,2.2353,165.53,165.49,2.2357]
[1717064341374,7.02,165.55,165.5,2.2356]
[1717064341673,2.2351,165.54,165.5,2.2356]
[1717064341850,2.235,165.55,165.5,2.2356]
[1717064342059,2.235,165.55,165.51,2.2355]
[1717064342252,9.255,165.55,165.51,2.2355]
[1717064342574,2.2351,165.54,165.5,2.2355]
[1717064344570,9.2554,165.52,165.48,2.2358]
[1717064345274,7.02,165.52,165.49,2.2357]
[1717064346378,7.02,165.52,165.5,2.2356]
[1717064348574,7.02,165.52,165.49,2.2357]
[1717064348779,7.02,165.51,165.48,2.2358]
[1717064349769,7.02,165.51,165.47,2.2359]
[1717064349977,7.02,165.49,165.47,2.2359]
[1717064350552,7.02,165.49,165.45,4.4725]
[1717064350553,7.02,165.49,165.46,2.2361]
[1717064352374,7.02,165.49,165.44,7.02]
[1717064352678,7.02,165.49,165.46,2.2361]
[1717064354496,9.2558,165.49,165.45,2.2362]
[1717064354787,7.02,165.48,165.44,2.2363]
[1717064355153,7.02,165.48,165.45,2.2363]
[1717064355577,2.2357,165.5,165.46,2.2361]
[1717064355760,8.3434,165.5,165.46,2.2361]
[1717064356280,6.1077,165.49,165.46,2.2361]
[1717064356578,6.1077,165.49,165.42,27.1498]
[1717064356579,8.3434,165.49,165.45,2.2362]
[1717064357554,6.1077,165.49,165.46,2.2361]
[1717064357760,2.2361,165.47,165.43,2.2364]
[1717064358057,8.7134,165.47,165.43,2.2364]
[1717064358478,7.02,165.46,165.43,2.2364]
[1717064359772,15.5666,165.46,165.42,2.2366]
[1717064362089,9.2563,165.45,165.42,2.2366]
[1717064363184,2.2364,165.44,165.39,0.27264369]
[1717064363388,9.2564,165.44,165.4,2.2369]
[1717064363907,11.1307,165.47,165.39,2.50964369]
[1717064363908,9.2566,165.43,165.39,2.50964369]
[1717064364067,7.02,165.43,165.4,2.2369]
[1717064364592,9.2565,165.44,165.4,2.2369]
[1717064364798,7.02,165.43,165.39,0.27264369]
[1717064364967,9.2567,165.42,165.39,0.27264369]
[1717064365167,8.8951,165.43,165.39,0.27264369]
[1717064365392,13.6785,165.43,165.39,2.50974369]
[1717064365684,6.6585,165.43,165.39,2.50964369]
[1717064365984,13.6785,165.43,165.39,2.50964369]
[1717064366188,15.9151,165.43,165.39,2.50964369]
[1717064366394,2.2367,165.42,165.39,0.27264369]
[1717064367205,9.2567,165.42,165.39,0.27264369]
[1717064371073,7.02,165.42,165.39,0.27264369]
[1717064371274,9.2569,165.41,165.39,0.27264369]
[1717064371584,2.237,165.4,165.39,0.27264369]
[1717064372792,9.257,165.4,165.39,0.27264369]
[1717064374995,7.02,165.4,165.39,0.27264369]
[1717064375287,9.2569,165.41,165.39,0.27264369]
[1717064375495,9.2567,165.42,165.39,0.27264369]
[1717064375867,2.2368,165.41,165.39,0.27264369]
[1717064376997,9.2568,165.41,165.39,0.27264369]
[1717064377678,2.237,165.4,165.39,0.27264369]
[1717064378004,9.2569,165.41,165.39,0.27264369]
[1717064378171,2.2369,165.41,165.39,0.27264369]
[1717064378489,9.2569,165.41,165.39,0.27264369]
[1717064379082,2.237,165.4,165.39,0.27264369]
[1717064379291,7.02,165.4,165.39,0.27264369]
[1717064379971,9.2569,165.41,165.39,0.27264369]
[1717064380400,2.2369,165.41,165.39,0.27264369]
[1717064380695,9.2569,165.41,165.39,0.27264369]
[1717064381191,2.2369,165.41,165.39,0.27264369]
[1717064382802,9.2569,165.41,165.39,0.27264369]
[1717064385399,2.2369,165.41,165.39,0.27264369]
[1717064386001,2.237,165.4,165.39,0.27264369]
[1717064386504,9.2569,165.41,165.39,0.27264369]
[1717064386799,2.2369,165.41,165.39,0.27264369]
[1717064387213,2.237,165.4,165.39,0.27264369]
[1717064387415,9.257,165.4,165.39,0.27264369]
[1717064387579,2.237,165.4,165.39,0.27264369]
[1717064387891,9.257,165.4,165.39,0.27264369]
[1717064388802,2.237,165.4,165.39,0.27264369]
[1717064389105,9.257,165.4,165.39,0.27264369]
[1717064389685,2.237,165.4,165.39,0.27264369]
[1717064389993,9.257,165.4,165.39,0.27264369]
[1717064394600,20.442,165.4,165.39,0.27264369]
[1717064395580,13.731,165.4,165.39,0.27264369]
[1717064397605,35.4632,165.4,165.39,0.27264369]
[1717064397782,35.4632,165.4,165.32,21.9056]
[1717064397783,4.4742,165.39,165.32,21.9056]
[1717064397984,7.02,165.35,165.32,21.9056]
[1717064398193,9.2576,165.35,165.32,21.9056]
[1717064399183,7.02,165.35,165.32,21.9056]
[1717064400798,9.2577,165.35,165.32,21.9056]
[1717064401485,2.2377,165.35,165.32,21.9056]
[1717064401681,7.02,165.35,165.32,24.1436]
[1717064401886,2.2375,165.36,165.33,6.1917]
[1717064402112,2.2375,165.36,165.33,21.6458]
[1717064402316,2.2375,165.36,165.34,21.6458]
[1717064403806,2.2377,165.35,165.32,6.1917]
[1717064404033,9.2578,165.34,165.31,15.4541]
[1717064404688,9.2578,165.34,165.29,2.2384]
[1717064404889,9.2578,165.34,165.29,8.4301]
[1717064405400,2.2378,165.34,165.3,15.4541]
[1717064405594,9.2578,165.34,165.3,15.4541]
[1717064405800,9.2578,165.34,165.3,21.6458]
[1717064406106,7.02,165.34,165.3,21.6458]
[1717064406307,9.2579,165.34,165.3,21.6458]
[1717064406807,9.2581,165.32,165.28,8.2715]
[1717064407289,2.2381,165.32,165.28,18.3255]
[1717064407490,2.2381,165.32,165.28,24.4018]
[1717064407704,2.2382,165.31,165.28,6.0763]
[1717064408326,9.2582,165.31,165.28,6.0763]
[1717064408699,9.2582,165.31,165.27,2.2387]
[1717064409620,2.2383,165.3,165.26,2.2388]
[1717064410302,9.2582,165.31,165.26,2.2388]
[1717064410505,9.2582,165.31,165.27,2.2387]
[1717064413002,2.2383,165.3,165.26,2.2388]
[1717064413301,9.2582,165.31,165.27,2.2387]
[1717064413616,2.2382,165.31,165.27,2.2387]
[1717064414498,9.2582,165.31,165.27,2.2387]
[1717064414918,2.2382,165.31,165.27,2.2387]
[1717064415423,2.2382,165.31,165.26,2.2388]
[1717064415631,9.2582,165.31,165.26,2.2388]
[1717064416132,9.2582,165.31,165.27,2.2387]
[1717064416632,9.2582,165.31,165.24,38.4937]
[1717064416633,2.2381,165.32,165.28,2.2386]
[1717064417422,2.2382,165.31,165.27,2.2386]
[1717064418410,2.2387,165.27,165.24,15.8856]
[1717064418611,7.02,165.29,165.24,29.4826]
[1717064418827,9.2585,165.29,165.25,2.2389]
[1717064419033,2.2385,165.29,165.25,2.2389]
[1717064419209,7.02,165.3,165.24,22.4626]
[1717064419535,2.2384,165.29,165.25,2.239]
[1717064419704,9.2583,165.3,165.26,2.2388]
[1717064420027,9.2583,165.3,165.25,2.2389]
[1717064420202,2.2384,165.29,165.25,2.2389]
[1717064420400,7.02,165.29,165.25,2.2389]
[1717064421031,7.02,165.29,165.26,2.2388]
[1717064421610,2.2381,165.32,165.27,2.2387]
[1717064421815,2.2381,165.32,165.28,2.2386]
[1717064422106,9.2581,165.32,165.28,2.2386]
[1717064422714,37.1985,165.29,165.23,0.8262503]
[1717064423039,15.8106,165.24,165.23,0.8262503]
[1717064423256,21.88357762,165.24,165.23,0.8262503]
[1717064424529,99.16467762,165.24,165.23,0.8262503]
[1717064425231,28.60107762,165.24,165.23,0.8262503]
[1717064426306,21.88357762,165.24,165.23,0.8262503]
[1717064426628,2.2391,165.24,165.23,0.8262503]
[1717064426815,34.6269,165.28,165.23,0.8262503]
[1717064427012,9.2591,165.24,165.23,0.8262503]
[1717064427331,20.3508,165.24,165.23,0.8262503]
[1717064428225,9.2591,165.24,165.23,0.8262503]
[1717064434460,10.85377762,165.24,165.23,0.8262503]
[1717064435159,21.60737762,165.24,165.23,0.8262503]
[1717064435745,37.28147762,165.24,165.23,0.8262503]
[1717064435964,82.28147762,165.24,165.23,0.8262503]
[1717064436257,80.6868,165.24,165.23,0.8262503]
[1717064436456,35.6868,165.24,165.23,0.8262503]
[1717064437472,80.6868,165.24,165.23,0.8262503]
[1717064438446,29.4115,165.24,165.23,0.8262503]
[1717064438646,22.3915,165.24,165.23,0.8262503]
[1717064438846,35.4144,165.24,165.23,0.8262503]
[1717064439088,80.4144,165.24,165.23,0.8262503]
[1717064439256,35.4144,165.24,165.23,0.8262503]
[1717064440156,6.7174,165.24,165.23,0.8262503]
[1717064440342,9.2591,165.24,165.23,0.8262503]
[1717064441052,11.1913,165.31,165.23,0.8262503]
[1717064441363,9.2589,165.26,165.23,0.8262503]
[1717064441547,2.2389,165.26,165.23,0.8262503]
[1717064441743,9.2589,165.26,165.23,0.8262503]